Workbook

Sheet MYP, MSS
B1: Matias Romo | E1: 1.8.2002 Jyväskylä
B2: YKKÖSPESIS | E2: Runkosarja | L2: Runkosarja TOP-10 | Q2: Jatkosarjat | X2: SUOMENSARJA | AA2: Runkosarja | AH2: Runkosarja TOP-10 | AM2: Jatkosarjat
B3: Vuosi | C3: Sija | D3: Seura | E3: OTT | F3: KUN | G3: LÖI | H3: TOI | I3: KL | J3: KL-% | L3: LÖI | M3: TOI | N3: L+T | O3: KL | Q3: OTT | R3: KUN | S3: LÖI | T3: TOI | U3: KL | V3: KL-% | X3: Vuosi | Y3: Sija | Z3: Seura | AA3: OTT | AB3: KUN | AC3: LÖI | AD3: TOI | AE3: KL | AF3: KL-% | AH3: LÖI | AI3: TOI | AJ3: L+T | AK3: KL | AM3: OTT | AN3: KUN | AO3: LÖI | AP3: TOI | AQ3: KL | AR3: KL-%
X4: 2019 | Y4: 1. | Z4: Lohi | AA4: 7 | AB4: 0 | AC4: 1 | AD4: 8 | AE4: 16 | AF4: 80.0 % | AG4: 20 | AM4: 5 | AN4: 0 | AO4: 0 | AP4: 2 | AQ4: 6 | AR4: 40.0 % | AS4: 15
X5: 2020 | Y5: 1. | Z5: Lohi | AA5: 6 | AB5: 0 | AC5: 0 | AD5: 6 | AE5: 14 | AF5: 41.2 % | AG5: 34
X6: 2021 | Y6: 6. | Z6: Kiri Jun | AA6: 8 | AB6: 0 | AC6: 0 | AD6: 7 | AE6: 31 | AF6: 58.5 % | AG6: 53
B7: 2022 | C7: 6. | D7: Lohi | E7: 2 | F7: 0 | G7: 0 | H7: 0 | I7: 0 | J7: 0.0 % | K7: 3 | X7: 2022 | Y7: 7. | Z7: Kiri Jun | AA7: 7 | AB7: 0 | AC7: 1 | AD7: 8 | AE7: 30 | AF7: 66.7 % | AG7: 45
B8: YHTEENSÄ | E8: =SUM(E4:E7) -> 2 | F8: =SUM(F4:F7) -> 0 | G8: 0 | H8: 0 | I8: 0 | J8: 0.0 % | K8: =SUM(K7:K7) -> 3 | Q8: =SUM(Q4:Q7) -> 0 | R8: =SUM(R4:R7) -> 0 | S8: 0 | T8: 0 | U8: 0 | V8: 0.0 % | W8: =SUM(W7:W7) -> 0 | X8: YHTEENSÄ | AA8: =SUM(AA4:AA7) -> 28 | AB8: =SUM(AB4:AB7) -> 0 | AC8: 2 | AD8: 29 | AE8: 91 | AF8: =PRODUCT(AE8/AG8) -> 59.9 % | AG8: =SUM(AG4:AG7) -> 152 | AM8: =SUM(AM4:AM7) -> 5 | AN8: =SUM(AN4:AN7) -> 0 | AO8: =SUM(AO4:AO7) -> 0 | AP8: =SUM(AP4:AP7) -> 2 | AQ8: =SUM(AQ4:AQ7) -> 6 | AR8: =PRODUCT(AQ8/AS8) -> 40.0 % | AS8: =SUM(AS4:AS7) -> 15
B10: KAIKKI OTTELUT | E10: OTT | F10: KUN | G10: LÖI | H10: TOI | I10: KL | J10: KL-% | L10: ka/L | M10: ka/T | N10: ka/l+t | O10: ka/kl | R10: Seurat | T10: Kiri = Jyväskylän Kiri (1930), kasvattajaseura
B11: SUPERPESIS | E11: 0 | F11: 0 | G11: 0 | H11: 0 | I11: 0 | J11: 0.0 % | K11: 0 | L11: 0.00 | M11: 0.00 | N11: 0.00 | O11: 0.00 | T11: Lohi = Jyväskylän Lohi (1924)
B12: YKKÖSPESIS | E12: =PRODUCT(E8+Q8) -> 2 | F12: =PRODUCT(F8+R8) -> 0 | G12: =PRODUCT(G8+S8) -> 0 | H12: =PRODUCT(H8+T8) -> 0 | I12: =PRODUCT(I8+U8) -> 0 | J12: 0.0 % | K12: 3 | L12: =PRODUCT((F12+G12)/E12) -> 0.00 | M12: =PRODUCT(H12/E12) -> 0.00 | N12: =PRODUCT((F12+G12+H12)/E12) -> 0.00 | O12: =PRODUCT(I12/E12) -> 0.00 | T12: Kiri Jun = Jyväskylän Kiri&Kirittäret Juniorit (1996)
B13: SUOMENSARJA | E13: =PRODUCT(AA8+AM8) -> 33 | F13: =PRODUCT(AB8+AN8) -> 0 | G13: =PRODUCT(AC8+AO8) -> 2 | H13: =PRODUCT(AD8+AP8) -> 31 | I13: =PRODUCT(AE8+AQ8) -> 97 | J13: =PRODUCT(I13/K13) -> 58.1 % | K13: =PRODUCT(AG8+AS8) -> 167 | L13: =PRODUCT((F13+G13)/E13) -> 0.06 | M13: =PRODUCT(H13/E13) -> 0.94 | N13: =PRODUCT((F13+G13+H13)/E13) -> 1.00 | O13: =PRODUCT(I13/E13) -> 2.94
B14: YHTEENSÄ | E14: =SUM(E11:E13) -> 35 | F14: =SUM(F11:F13) -> 0 | G14: 2 | H14: 31 | I14: 97 | J14: =PRODUCT(I14/K14) -> 57.1 % | K14: =SUM(K11:K13) -> 170 | L14: =PRODUCT((F14+G14)/E14) -> 0.06 | M14: =PRODUCT(H14/E14) -> 0.89 | N14: =PRODUCT((F14+G14+H14)/E14) -> 0.94 | O14: =PRODUCT(I14/E14) -> 2.77
